bitfinex/quotes_ETHUSD_20220119
["timestamp","ask_amount","ask_price","bid_price","bid_amount"]
[1642573561830,0.03729576,3112.5,3112.1,0.00170527]
[1642573562030,0.94609576,3112.7,3112.1,0.00170527]
[1642573562230,0.8037,3112.5,3112.1,0.00170527]
[1642573562630,0.8037,3112.5,3112.1,0.30170527]
[1642573562830,0.84099576,3112.5,3112.1,0.00170527]
[1642573563033,1.9944134,3112.4,3112.2,0.00113684]
[1642573563231,0.80379,3112.3,3112.1,0.00170527]
[1642573564583,0.82978703,3112.5,3112.1,0.00170527]
[1642573564783,0.95866503,3112.5,3112.1,0.00170527]
[1642573565584,0.80368,3112.5,3112.1,2.73318762]
[1642573565784,1.34728703,3112.5,3112.1,2.73318762]
[1642573566084,0.54360703,3112.5,3112.2,0.00113684]
[1642573566484,0.54360703,3112.5,3112.3,0.02512789]
[1642573567084,0.24900703,3112.5,3112.3,0.02512789]
[1642573567291,0.00113685,3112.6,3112.3,0.02512789]
[1642573567746,0.45522703,3112.5,3112.3,0.02512789]
[1642573568135,0.00113685,3112.6,3112.3,0.02512789]
[1642573568335,0.45582703,3112.5,3112.3,0.02512789]
[1642573571343,0.00113685,3112.6,3112.3,0.02512789]
[1642573571592,0.46782703,3112.5,3112.3,0.02512789]
[1642573572188,0.17372703,3112.5,3112.3,0.02512789]
[1642573572588,0.80479685,3112.6,3112.3,0.02512789]
[1642573572792,0.37959703,3112.5,3112.3,0.02512789]
[1642573577142,0.08939703,3112.5,3112.3,0.02512789]
[1642573577544,1.60850685,3112.6,3112.3,0.02512789]
[1642573577843,0.54753703,3112.5,3112.3,0.02512789]
[1642573580689,0.49753703,3112.5,3112.3,0.02512789]
[1642573580987,0.80479685,3112.6,3112.3,0.02512789]
[1642573581190,0.53253703,3112.5,3112.3,0.02512789]
[1642573581586,0.5493415,3112.5,3112.2,0.00113684]
[1642573581987,0.5493415,3112.5,3111.9,2.73444365]
[1642573582188,0.5493415,3112.5,3112.0,0.00227369]
[1642573582389,0.2501415,3112.5,3112.0,0.00227369]
[1642573582588,0.80479685,3112.6,3112.0,0.00227369]
[1642573582836,0.80372,3112.4,3112.0,0.00227369]
[1642573583141,1.9735376,3112.3,3112.0,0.00227369]
[1642573583535,1.9735376,3112.3,3111.4,2.73751237]
[1642573583735,1.9735376,3112.3,3111.5,2.73694395]
[1642573583936,0.80385,3112.2,3111.6,2.73182814]
[1642573584136,0.80385,3112.2,3111.6,2.73637552]
[1642573584341,0.80385,3112.2,3111.7,2.7358071]
[1642573584534,0.80385,3112.2,3111.8,2.73182814]
[1642573584734,0.80385,3112.2,3111.8,2.73523868]
[1642573584935,0.80385,3112.2,3111.9,2.73467025]
[1642573585136,0.80385,3112.2,3111.9,0.00284211]
[1642573585339,0.80385,3112.2,3112.0,0.00227369]
[1642573585542,0.80385,3112.2,3111.5,2.7316776]
[1642573585543,1.26771,3112.4,3111.9,1.0855827]
[1642573585741,1.26771,3112.4,3112.0,2.73165423]
[1642573585940,1.26771,3112.4,3112.0,2.73392792]
[1642573586141,1.26771,3112.4,3112.1,0.00170527]
[1642573586580,1.26771,3112.4,3112.0,2.73390922]
[1642573586884,1.26771,3112.4,3112.1,0.00170527]
[1642573587482,0.97011,3112.4,3112.1,0.00170527]
[1642573587684,0.97011,3112.4,3112.0,0.00227369]
[1642573587883,0.97011,3112.4,3112.0,2.73391195]
[1642573588282,0.97011,3112.4,3112.1,0.00170527]
[1642573588684,0.97011,3112.4,3112.0,0.00227369]
[1642573588886,0.97011,3112.4,3112.1,0.00170527]
[1642573589085,0.97011,3112.4,3112.0,2.73392035]
[1642573589489,0.97011,3112.4,3112.1,0.00170527]
[1642573589688,0.1664,3112.4,3112.1,0.00170527]
[1642573592640,0.8766,3112.6,3112.1,0.00170527]
[1642573593240,3.65371022,3112.7,3112.1,0.00170527]
[1642573593442,2.85008022,3112.7,3112.1,0.00170527]
[1642573593743,2.85008022,3112.7,3112.1,4.54104423]
[1642573593981,2.85008022,3112.7,3112.2,3.33164666]
[1642573594181,6.4258,3112.6,3112.3,2.73164666]
[1642573595786,7.22947,3112.6,3112.3,2.73164666]
[1642573597586,6.93727,3112.6,3112.3,2.73164666]
[1642573600238,2.00647985,3112.5,3112.2,0.00113684]
[1642573600643,0.80382,3112.4,3111.5,2.73490771]
[1642573600840,1.96518105,3112.3,3111.6,2.73433928]
[1642573601040,1.60764,3112.4,3111.7,2.7297919]
[1642573601041,0.80382,3112.4,3111.7,2.7297919]
[1642573601241,1.98251748,3112.3,3111.7,2.73377086]
[1642573601493,1.98251748,3112.3,3111.8,2.73320244]
[1642573601696,0.80383,3112.1,3111.9,2.7297919]
[1642573601896,1.6077,3112.1,3111.9,0.00284211]
[1642573602095,1.6077,3112.1,3112.0,0.00227369]
[1642573602295,1.6077,3112.1,3111.5,2.73516621]
[1642573602495,1.6077,3112.1,3111.6,2.73459778]
[1642573602701,1.3105,3112.1,3111.7,2.7300504]
[1642573602896,1.3105,3112.1,3111.7,2.73402936]
[1642573603096,1.3105,3112.1,3111.8,2.73346094]
[1642573603297,0.80383,3112.1,3111.9,2.7300504]
[1642573603497,0.80383,3112.1,3112.0,2.7300504]
[1642573603699,0.80372,3112.4,3112.0,0.00227369]
[1642573604098,0.80372,3112.4,3111.6,2.7300504]
[1642573604099,0.80372,3112.4,3111.6,2.73459778]
[1642573604298,0.80372,3112.4,3111.7,2.73402936]
[1642573604498,0.80372,3112.4,3111.8,2.7300504]
[1642573604699,0.80372,3112.4,3111.8,2.73346094]
[1642573604998,0.80372,3112.4,3111.9,2.73289251]
[1642573605242,0.80372,3112.4,3112.0,2.7300504]
[1642573605443,0.80372,3112.4,3112.0,0.00227369]
[1642573605642,1.60748,3112.4,3112.1,0.00170527]
[1642573605842,1.60748,3112.4,3111.7,2.72995752]
[1642573606042,1.60748,3112.4,3111.7,2.73393648]
[1642573606244,1.60748,3112.4,3111.8,2.73336806]
[1642573606543,0.80376,3112.2,3111.9,2.73279963]
[1642573606742,0.80376,3112.2,3112.0,2.72995752]
[1642573606942,0.80376,3112.2,3112.1,2.72995752]
[1642573607147,0.80376,3112.2,3112.1,2.73166279]
[1642573607444,0.80376,3112.2,3112.1,0.00170527]
[1642573607847,0.50776,3112.2,3111.5,2.73498148]
[1642573608044,0.50776,3112.2,3111.6,2.73441305]
[1642573608243,0.50776,3112.2,3111.7,2.72986567]
[1642573608443,0.50776,3112.2,3111.7,2.73384463]
[1642573608643,0.50776,3112.2,3111.8,2.73327621]
[1642573608846,1.31155,3112.2,3111.9,2.72986567]
[1642573609083,1.31155,3112.2,3112.0,2.72986567]
[1642573609382,1.31155,3112.2,3112.1,0.00170527]
[1642573609784,0.80387,3112.1,3111.6,2.73440678]
[1642573609984,3.59389488,3112.0,3111.7,2.73383836]
[1642573610186,1.60776,3112.0,3111.8,2.7298594]
[1642573610392,1.60776,3112.0,3111.8,2.73326994]
[1642573610588,0.80387,3112.0,3111.9,0.00284211]
[1642573610988,0.80387,3112.0,3111.5,3.03504099]
[1642573611187,0.80387,3112.0,3111.6,2.73447256]
[1642573611388,0.80387,3112.0,3111.7,2.72992518]
[1642573611589,0.80387,3112.0,3111.7,2.73390414]
[1642573611790,1.60772,3112.0,3111.8,2.73333572]
[1642573611990,1.60772,3112.0,3111.9,2.72992518]
[1642573612190,1.60772,3112.0,3111.9,0.00284211]
[1642573612588,1.60772,3112.0,3111.6,0.00454738]
[1642573612589,0.80387,3112.0,3111.6,0.00454738]
[1642573612837,0.80387,3112.0,3111.7,2.72992518]
[1642573613045,0.50607,3112.0,3111.7,2.72992518]
[1642573613236,0.50607,3112.0,3111.8,0.00341054]
[1642573613437,0.50607,3112.0,3111.8,2.73333572]
[1642573613637,0.50607,3112.0,3111.9,2.72992518]
[1642573613836,0.50607,3112.0,3111.9,0.00284211]
[1642573614238,0.50607,3112.0,3111.6,0.00454738]
[1642573614641,0.80375,3112.2,3111.6,0.00454738]
[1642573614938,0.80375,3112.2,3111.7,2.72992518]
[1642573615341,0.80375,3112.2,3111.8,0.00341054]
[1642573615544,0.80375,3112.2,3111.8,2.73333572]
[1642573615741,0.80375,3112.2,3111.9,2.72992518]
[1642573615942,0.80375,3112.2,3111.9,0.00284211]
[1642573616141,0.80375,3112.2,3112.0,0.00227369]
[1642573616341,0.80375,3112.2,3111.5,2.73496211]
[1642573616586,0.80375,3112.2,3111.6,2.73439368]
[1642573616786,0.80375,3112.2,3111.7,2.7298463]
[1642573616987,0.80375,3112.2,3111.7,2.73382526]
[1642573617184,0.80375,3112.2,3111.8,2.73325684]
[1642573617384,0.80375,3112.2,3111.9,2.7298463]
[1642573617587,0.80375,3112.2,3111.9,0.00284211]
[1642573617783,0.80375,3112.2,3111.4,3.6222]
[1642573617784,0.80375,3112.2,3112.0,0.00227369]
[1642573617983,0.51025,3112.2,3111.5,2.73493096]
[1642573618187,0.51025,3112.2,3111.6,2.73436253]
[1642573618383,0.51025,3112.2,3111.7,2.72981515]
[1642573618586,0.51025,3112.2,3111.7,2.73379411]
[1642573618788,0.464,3112.5,3111.8,2.73322569]
[1642573619087,0.464,3112.5,3111.9,0.00284211]
[1642573619484,6.1336,3112.6,3111.9,0.00284211]
[1642573619686,6.1336,3112.6,3111.9,3.53624456]
[1642573619884,6.1336,3112.6,3112.0,2.72981515]
[1642573620084,6.1336,3112.6,3112.0,2.73208884]
[1642573620335,6.1336,3112.6,3112.1,0.00170527]
[1642573620739,6.1336,3112.6,3112.1,2.73152042]
[1642573621138,6.1336,3112.6,3112.2,1.23177923]
[1642573621338,6.1336,3112.6,3112.3,2.72981515]
[1642573621736,6.1336,3112.6,3112.3,3.83332515]
[1642573621937,6.1336,3112.6,3112.4,2.72981515]
[1642573622136,6.1336,3112.6,3112.4,3.02981515]
[1642573622137,6.12489534,3112.6,3112.4,3.02981515]
[1642573622338,6.12489534,3112.6,3112.5,3.02981515]
[1642573623137,5.83479534,3112.6,3112.5,3.02981515]
[1642573623537,5.83479534,3112.6,3112.5,0.3]
[1642573623738,5.83479534,3112.6,3112.4,0.3]
[1642573623998,5.83479534,3112.6,3112.5,3.02928002]
[1642573624384,5.83479534,3112.6,3112.5,2.72928002]
[1642573624585,5.83479534,3112.6,3112.5,0.00629822]
[1642573628133,5.53959534,3112.6,3112.5,0.00629822]
[1642573628333,5.53959534,3112.6,3112.5,2.73562427]
[1642573628538,5.53959534,3112.6,3112.5,0.30629822]
[1642573628734,5.53959534,3112.6,3112.5,0.00629822]
[1642573630638,5.53959534,3112.6,3112.5,2.73712118]
[1642573631043,5.53959534,3112.6,3112.5,0.00629822]
[1642573632393,5.48959534,3112.6,3112.5,0.00629822]
[1642573632596,5.48959534,3112.6,3112.5,2.7371541]
[1642573632996,5.48959534,3112.6,3112.5,0.30629822]
[1642573633195,5.19599534,3112.6,3112.5,0.30629822]
[1642573633395,5.19599534,3112.6,3112.5,3.03706506]
[1642573633600,5.19599534,3112.6,3112.5,3.33706506]
[1642573638440,4.89919534,3112.6,3112.5,3.33706506]
[1642573639687,4.89919534,3112.6,3112.5,3.03706506]
[1642573640892,4.89919534,3112.6,3112.5,3.33706506]
[1642573642836,4.89919534,3112.6,3112.5,0.60629822]
[1642573643243,4.89919534,3112.6,3112.5,3.33698012]
[1642573643440,4.60529534,3112.6,3112.5,3.03698012]
[1642573643642,4.60529534,3112.6,3112.5,3.33698012]
[1642573643841,4.60529534,3112.6,3112.5,0.60629822]
[1642573644046,4.60529534,3112.6,3112.5,0.30629822]
[1642573644242,4.60529534,3112.6,3112.5,3.03698872]
[1642573644644,4.60529534,3112.6,3112.5,3.33698872]
[1642573644842,4.60529534,3112.6,3112.5,0.00629822]
[1642573645044,6.60529534,3112.6,3112.5,0.00629822]
[1642573645248,4.60529534,3112.6,3112.5,0.00629822]
[1642573648492,4.31199534,3112.6,3112.5,0.00629822]
[1642573648792,6.28679547,3112.6,3112.5,0.00629822]
[1642573649196,4.31199534,3112.6,3112.5,0.00629822]
[1642573650944,4.31199534,3112.6,3112.5,2.73704454]
[1642573651444,4.31199534,3112.6,3112.5,3.03704454]
[1642573651847,4.31199534,3112.6,3112.5,0.30629822]
[1642573652246,4.31199534,3112.6,3112.5,0.00629822]
[1642573652446,6.37774678,3112.6,3112.5,0.00629822]
[1642573652847,4.31199534,3112.6,3112.5,0.00629822]
[1642573653647,4.01539534,3112.6,3112.5,0.00629822]
[1642573655895,6.0785645,3112.6,3112.5,0.00629822]
[1642573656099,7.3463745,3112.6,3112.4,0.0001889]
[1642573656298,5.28320534,3112.6,3112.4,0.0001889]
[1642573656595,5.29861869,3112.6,3111.5,3.27762775]
[1642573656796,0.80387,3112.4,3111.6,2.73126304]
[1642573657002,0.80387,3112.4,3111.6,2.73581042]
[1642573657003,4.01539534,3112.3,3111.6,2.73581042]
[1642573657197,1.26792,3112.2,3111.7,2.73126304]
[1642573657397,4.01539534,3112.1,3111.7,2.73126304]
[1642573657597,4.47939534,3112.1,3111.8,0.00341054]
[1642573657870,4.47939534,3112.1,3111.8,2.73467358]
[1642573658062,4.47939534,3112.1,3111.9,2.73126304]
[1642573658262,4.47939534,3112.1,3111.9,0.00284211]
[1642573658464,4.47939534,3112.1,3112.0,0.00227369]
[1642573658665,4.18779534,3112.1,3111.5,2.7363802]
[1642573658865,4.18779534,3112.1,3111.6,2.73126439]
[1642573659065,4.18779534,3112.1,3111.6,3.03126439]
[1642573659268,4.18779534,3112.1,3111.7,2.73524335]
[1642573659571,4.18779534,3112.1,3111.8,2.73467493]
[1642573659768,4.18779534,3112.1,3111.9,2.73126439]
[1642573659968,4.18779534,3112.1,3111.9,2.7341065]
[1642573660169,4.18779534,3112.1,3112.0,2.73353808]
[1642573660369,4.18779534,3112.1,3112.0,0.00227369]
[1642573660569,3.72379534,3112.1,3112.0,0.00227369]
[1642573660769,3.72379534,3112.1,3111.7,0.00397896]
[1642573660971,3.72379534,3112.1,3111.8,3.53490789]
[1642573661173,3.72379534,3112.1,3111.8,3.83490789]
[1642573661371,3.72379534,3112.1,3111.9,2.7341065]
[1642573661594,3.75732639,3112.1,3111.9,2.7341065]
[1642573661795,3.75732639,3112.1,3112.0,0.00227369]
[1642573663798,3.46512639,3112.1,3112.0,0.00227369]
[1642573664000,4.26892639,3112.1,3112.0,0.00227369]
[1642573665238,4.26892639,3112.1,3111.4,3.33693335]
[1642573665439,4.26892639,3112.1,3111.5,2.73636493]
[1642573665641,4.26892639,3112.1,3111.6,2.73124912]
[1642573665841,4.26892639,3112.1,3111.6,3.03124912]
[1642573666043,4.26892639,3112.1,3111.7,2.73522808]
[1642573666241,4.26892639,3112.1,3111.8,2.73124912]
[1642573666440,4.26892639,3112.1,3111.8,2.73465966]
[1642573666644,4.26892639,3112.1,3112.0,0.02209575]
[1642573667042,4.26892639,3112.1,3112.0,0.02436944]
[1642573667446,4.26892639,3112.1,3112.0,2.75553163]
[1642573667644,3.46512639,3112.1,3112.0,2.75553163]
[1642573667844,3.46512639,3112.1,3112.0,3.05553163]
[1642573668645,3.46512639,3112.1,3112.0,2.75553163]
[1642573668845,3.16812639,3112.1,3112.0,2.75553163]
[1642573670599,3.16812639,3112.1,3112.0,0.02436944]
[1642573671599,3.97194639,3112.1,3112.0,2.73345091]
[1642573671997,3.97194639,3112.1,3112.0,0.00227369]
[1642573673947,3.67804639,3112.1,3112.0,0.00227369]
[1642573674748,3.67804639,3112.1,3112.0,0.00714026]
[1642573676156,2.87422639,3112.1,3112.0,0.00714026]
[1642573676589,2.87422639,3112.1,3112.0,0.02924536]
[1642573677187,2.87422639,3112.1,3112.0,2.76041938]
[1642573677592,2.87422639,3112.1,3112.0,0.02924536]
[1642573679003,2.58042639,3112.1,3112.0,0.02924536]
[1642573680094,2.58042639,3112.1,3112.0,2.76039348]
[1642573680343,2.58042639,3112.1,3112.0,0.02924536]
[1642573681245,2.58042639,3112.1,3112.0,2.76039264]
[1642573681445,2.58042639,3112.1,3112.0,0.02924536]
[1642573682044,2.58042639,3112.1,3112.0,2.76039017]
[1642573682645,2.58042639,3112.1,3112.0,2.76039185]
[1642573682845,2.58042639,3112.1,3112.0,0.02924536]
[1642573683646,2.58042639,3112.1,3112.0,2.76038723]
[1642573684095,2.28962639,3112.1,3112.0,2.76038723]
[1642573686401,2.28962639,3112.1,3112.0,2.76697124]
[1642573689241,1.98922639,3112.1,3112.0,2.76697124]
[1642573689842,1.98922639,3112.1,3112.0,2.76210467]
[1642573691505,1.98922639,3112.1,3112.0,5.42302832]
[1642573691698,1.98922639,3112.1,3112.0,7.27662832]
[1642573692297,1.94584232,3112.1,3112.0,10.77662832]
[1642573692498,1.94584232,3112.1,3112.0,7.27662832]
[1642573692699,1.94584232,3112.1,3112.0,7.43768832]
[1642573694200,1.65314232,3112.1,3112.0,10.23768832]
[1642573694399,1.65314232,3112.1,3112.0,7.43768832]
[1642573694600,1.65314232,3112.1,3112.0,7.44310882]
[1642573696449,1.65314232,3112.1,3112.0,7.47179793]
[1642573696944,1.65314232,3112.1,3112.0,5.37991148]
[1642573697147,1.65314232,3112.1,3112.0,6.34138879]
[1642573697546,1.65314232,3112.1,3112.0,4.52631148]
[1642573697748,1.65314232,3112.1,3112.0,6.33002715]
[1642573698748,1.65314232,3112.1,3112.0,4.52631148]
[1642573699389,1.35744232,3112.1,3112.0,3.52631148]
[1642573699589,1.35744232,3112.1,3112.0,3.36525148]
[1642573699993,1.35744232,3112.1,3112.0,2.76525148]
[1642573701397,1.35744232,3112.1,3112.0,3.06525148]
[1642573701594,1.35744232,3112.1,3112.0,4.8713608]
[1642573702836,1.35744232,3112.1,3112.0,5.1713608]
[1642573703037,1.35744232,3112.1,3112.0,6.3324208]
[1642573704042,1.35744232,3112.1,3112.0,4.5713608]
[1642573704250,1.35744232,3112.1,3112.0,2.76525148]
[1642573704442,1.06594232,3112.1,3112.0,2.76525148]
[1642573705443,1.06594232,3112.1,3112.0,3.06525148]
[1642573705645,1.06594232,3112.1,3112.0,3.36525148]
[1642573706147,1.06594232,3112.1,3112.0,5.15417603]
[1642573707393,1.06594232,3112.1,3112.0,3.06525148]
[1642573707594,1.06594232,3112.1,3112.0,3.36525148]
[1642573707797,1.06594232,3112.1,3112.0,3.06525148]
[1642573707996,1.06594232,3112.1,3112.0,3.36525148]
[1642573708598,1.06594232,3112.1,3112.0,3.06525148]
[1642573709598,0.77534232,3112.1,3112.0,3.0666066]
[1642573709802,0.77534232,3112.1,3112.0,3.3666066]
[1642573711648,0.77534232,3112.1,3112.0,5.22630466]
[1642573713447,0.77534232,3112.1,3112.0,3.3666066]
[1642573713648,0.76762653,3112.1,3112.0,3.3666066]
[1642573714492,0.47572653,3112.1,3112.0,3.3666066]
[1642573714892,0.47572653,3112.1,3112.0,2.7666066]
[1642573716200,0.47572653,3112.1,3112.0,3.0666066]
[1642573719346,0.47572653,3112.1,3112.0,4.88400497]
[1642573719551,0.18322653,3112.1,3112.0,8.63400497]
[1642573719746,0.18322653,3112.1,3112.0,4.88400497]
[1642573722291,0.18322653,3112.1,3112.0,3.3666066]
[1642573722894,0.18322653,3112.1,3112.0,5.15177406]
[1642573724706,1.06052653,3112.7,3112.1,4.9035237]
[1642573724904,1.06052653,3112.7,3112.3,0.80353]
[1642573725108,1.06052653,3112.7,3112.4,2.73114187]
[1642573725345,12.86447299,3113.1,3112.5,2.73114187]
[1642573725547,5.33837299,3113.1,3112.6,2.73114187]
[1642573725747,0.00341055,3113.0,3112.7,2.73114187]
[1642573725947,0.00341055,3113.0,3112.2,2.08547573]
[1642573726149,0.00284212,3112.9,3112.4,0.3]
[1642573726346,0.00284212,3112.9,3112.5,2.73052695]
[1642573726547,0.0022737,3112.8,3112.6,2.75912448]
[1642573726845,1.60937299,3113.1,3112.7,2.73052695]
[1642573727252,0.00341055,3113.0,3112.7,2.73052695]
[1642573727646,0.00284212,3112.9,3112.7,2.73052695]
[1642573728048,0.0022737,3112.8,3112.7,2.73052695]
[1642573729694,1.32064669,3113.1,3112.7,2.73727528]
[1642573729899,1.32064669,3113.1,3112.8,2.73052695]
[1642573730104,0.00113685,3113.0,3112.8,2.73052695]
[1642573731501,0.00113685,3113.0,3112.8,2.75908479]
[1642573731702,0.00113685,3113.0,3112.8,0.02855784]
[1642573734550,0.00113685,3113.0,3112.8,0.03530131]
[1642573734950,0.50359685,3113.3,3112.8,0.03530131]
[1642573735348,0.00113684,3113.2,3112.8,0.03530131]
[1642573736499,0.00113684,3113.2,3112.9,2.73048141]
[1642573736701,0.00113684,3113.2,3113.1,0.02851816]
[1642573738004,0.46513684,3113.2,3113.1,0.02851816]
[1642573739600,0.46513684,3113.2,3113.1,0.03390722]
[1642573740000,0.17133684,3113.2,3113.1,0.03390722]
[1642573745098,0.84903369,3113.3,3113.1,0.03390722]
[1642573745305,6.4243,3113.2,3113.1,0.03390722]
[1642573746603,6.4243,3113.2,3113.1,0.02594768]
[1642573749447,6.4243,3113.2,3113.1,2.75630204]
[1642573750248,6.1267,3113.2,3113.1,2.75630204]
[1642573752095,6.1267,3113.2,3113.1,0.02594768]
[1642573752495,6.1267,3113.2,3113.1,2.75632143]
[1642573753399,6.1267,3113.2,3113.1,0.02594768]
[1642573754601,6.1267,3113.2,3113.1,0.03133586]
[1642573754801,6.1267,3113.2,3113.1,2.76169528]
[1642573755243,5.8368,3113.2,3113.1,2.76169528]
[1642573755446,5.8368,3113.2,3113.1,0.03133586]
[1642573755847,5.8368,3113.2,3113.1,2.76173955]
[1642573756052,5.8368,3113.2,3113.1,2.76174882]
[1642573759598,5.8368,3113.2,3113.1,2.75636064]
[1642573760406,5.5357,3113.2,3113.1,2.75636064]
[1642573765556,5.2331,3113.2,3113.1,2.75636064]
[1642573770649,4.9429,3113.2,3113.1,2.75636064]
[1642573774199,6.95,3113.0,3112.0,4.01079511]
[1642573774402,6.95,3113.0,3111.3,3.9156]
[1642573774403,6.95,3112.3,3111.4,1.1661859]
[1642573774601,6.95,3112.3,3111.2,3.21588941]
[1642573774602,0.01226513,3111.6,3111.2,1.61095446]
[1642573774803,0.01226513,3111.6,3110.9,6.51278951]
[1642573774804,0.01274373,3111.5,3111.1,1.61095446]
[1642573775105,0.01274373,3111.5,3110.6,1.61095446]
[1642573775106,6.26,3111.4,3110.6,1.61095446]
[1642573775303,3.11540512,3111.3,3110.4,4.09635782]
[1642573775500,3.11540512,3111.3,3110.7,0.00341054]
[1642573775501,0.464,3111.2,3110.7,0.00341054]
[1642573775705,0.464,3111.2,3110.0,1.61095446]
[1642573775706,6.6567,3110.9,3110.0,1.61095446]
[1642573775905,6.6567,3110.9,3109.5,3.21588941]
[1642573775906,6.95,3110.7,3109.7,2.41643169]
[1642573776101,6.95,3110.7,3109.1,7.93252034]
[1642573776102,5.796,3110.5,3110.1,0.00170528]
[1642573776304,7.56745,3110.6,3110.1,0.00170528]
[1642573776305,12.746,3110.2,3110.1,0.00170528]
[1642573776504,0.80442,3109.9,3109.1,2.41643169]
[1642573776708,5.4069,3109.8,3108.9,2.41643169]
[1642573776905,5.4069,3109.8,3109.2,0.00682109]
[1642573777306,5.4069,3109.8,3108.9,0.00852636]
[1642573777506,5.4069,3109.8,3109.0,0.00795793]
[1642573777754,5.4069,3109.8,3108.7,0.0096632]
[1642573777755,0.8045262,3109.5,3108.7,0.0096632]
[1642573777953,0.464,3109.4,3108.6,0.01023163]
[1642573778357,1.94195519,3109.3,3108.6,0.01023163]
[1642573778554,0.464,3109.2,3108.6,1.19821113]
[1642573778754,0.464,3109.2,3108.6,19.98821113]
[1642573778954,0.464,3109.2,3108.7,22.89602102]
[1642573779153,0.464,3109.2,3108.8,4.09635782]
[1642573779357,0.464,3109.2,3108.8,4.1054526]
[1642573779552,0.464,3109.2,3108.9,0.00852636]
[1642573779954,4.9429,3109.8,3108.9,0.00852636]
[1642573780556,4.9429,3109.8,3108.9,0.30852636]
[1642573780756,4.6512,3109.8,3108.9,0.3]
[1642573780954,4.6512,3109.8,3109.0,0.00795793]
[1642573781626,0.464,3109.7,3109.0,0.04258769]
[1642573781811,0.8045,3109.6,3109.0,0.04258769]
[1642573782018,0.464,3109.5,3109.1,0.00738951]
[1642573782510,2.07302,3109.5,3109.1,0.00738951]
[1642573782713,4.4865792,3109.5,3109.1,0.00738951]
[1642573783514,2.06254519,3109.4,3109.1,0.00738951]
[1642573783714,4.94009749,3109.4,3109.1,0.00738951]
[1642573783914,0.80454,3109.3,3109.1,0.00738951]
[1642573784719,6.54922749,3109.4,3109.1,0.00738951]
[1642573784720,2.8775523,3109.4,3109.1,0.00738951]
[1642573785119,0.3212,3109.3,3109.1,0.00738951]
[1642573785347,1.12568,3109.3,3109.1,0.00738951]
[1642573785848,0.82528,3109.3,3109.1,0.00738951]
[1642573786548,0.83953162,3109.3,3109.1,0.00738951]
[1642573786751,0.464,3109.2,3109.1,0.00738951]
[1642573786949,0.80455,3109.1,3108.5,0.01080005]
[1642573787154,3.24086275,3109.2,3108.5,0.01080005]
[1642573787351,2.01564722,3109.0,3108.5,0.01080005]
[1642573787553,0.464,3108.9,3108.0,0.01364217]
[1642573788552,0.464,3108.9,3107.9,0.01421059]
[1642573788752,0.3212,3108.8,3107.9,0.01421059]
[1642573790210,1.6093208,3108.7,3107.9,0.01421059]
[1642573790810,6.95,3108.6,3107.6,0.3]
[1642573791017,0.51007,3108.4,3107.7,1.00109173]
[1642573791217,0.51007,3108.4,3107.7,0.00113685]
[1642573791218,2.464,3108.3,3107.7,0.00113685]
[1642573791419,4.66417634,3108.2,3107.7,0.00113685]
[1642573791612,4.66417634,3108.2,3107.2,0.00397897]
[1642573791613,0.464,3108.1,3107.2,0.00397897]
[1642573791813,0.464,3108.1,3106.9,2.00568424]
[1642573791814,0.46513685,3108.1,3106.9,2.00568424]
[1642573792011,4.6512,3108.0,3107.1,1.41660176]
[1642573792220,0.46513685,3108.1,3108.0,1.18100608]
[1642573792847,4.36153685,3108.1,3108.0,1.18100608]
[1642573793048,3.89753685,3108.1,3108.0,1.18100608]
[1642573794049,3.89753685,3108.1,3108.0,4.53100608]
[1642573794347,4.21873685,3108.1,3108.0,3.91454627]
[1642573796153,4.38733685,3108.1,3108.0,3.91454627]
[1642573796594,4.38733685,3108.1,3108.0,3.91502909]
[1642573796795,4.38733685,3108.1,3108.0,1.18100608]
[1642573797196,4.38733685,3108.1,3108.0,3.91500971]
[1642573797394,6.35111477,3108.1,3108.0,3.91500971]
[1642573797698,6.35111477,3108.1,3108.0,1.18100608]
[1642573798097,4.38733685,3108.1,3108.0,3.91506572]
[1642573798399,4.38733685,3108.1,3108.0,1.18100608]
[1642573800645,6.53480312,3108.1,3108.0,1.18100608]
[1642573801244,6.23520312,3108.1,3108.0,1.18100608]
[1642573801644,4.08773685,3108.1,3108.0,1.18100608]
[1642573801845,4.08773685,3108.1,3108.0,3.91510772]
[1642573802246,2.12774429,3108.2,3108.0,3.91510772]
[1642573802445,2.4143177,3108.3,3108.2,3.70492934]
[1642573802646,1.6095077,3108.3,3108.2,3.70047305]
[1642573802851,5.0735077,3108.3,3108.2,3.70047305]
[1642573803046,2.0735077,3108.3,3108.2,3.70047305]
[1642573803451,1.2687577,3108.3,3108.2,6.43439965]
[1642573803656,5.24057,3108.8,3108.2,8.43439965]
[1642573803657,3.6311,3108.8,3108.2,8.43439965]
[1642573803853,1.6115516,3108.9,3108.3,2.7339266]
[1642573804106,3.7035,3109.1,3108.3,2.7339266]
[1642573804304,3.925,3109.2,3108.2,3.70047305]
[1642573804504,5.5340608,3109.2,3108.3,2.73373248]
[1642573804905,5.5340608,3109.2,3108.4,1.44274812]
[1642573805207,5.5340608,3109.2,3108.2,3.70047305]
[1642573805414,0.80465,3108.8,3108.2,3.70047305]
[1642573805608,1.6092969,3108.7,3108.2,3.70047305]
[1642573806009,1.6092969,3108.7,3108.3,2.73375004]
[1642573806413,1.3147969,3108.7,3108.3,2.73375004]
[1642573806613,0.00284211,3108.6,3108.3,2.73375004]
[1642573806811,0.80750211,3108.6,3108.2,3.70047305]
[1642573807110,0.00227369,3108.5,3108.3,2.73374924]
[1642573807510,0.00170527,3108.4,3108.3,2.73374924]
[1642573808347,0.00170527,3108.4,3108.3,2.72186711]
[1642573809146,0.00170527,3108.4,3108.3,3.16603035]
[1642573809344,0.00170527,3108.4,3108.3,3.61019359]
[1642573810351,3.20170527,3108.4,3108.3,3.61019359]
[1642573810951,3.20170527,3108.4,3108.3,3.54942172]
[1642573811596,2.90400527,3108.4,3108.3,3.54942172]
[1642573812197,2.90400527,3108.4,3108.2,3.70047305]
[1642573812396,2.70501414,3108.5,3108.2,3.70047305]
[1642573812796,1.6094811,3108.4,3108.0,1.18100608]
[1642573813203,1.6094811,3108.4,3108.1,0.00170527]
[1642573813397,2.4142211,3108.4,3108.1,0.00170527]
[1642573814400,1.6094711,3108.4,3108.1,0.00170527]
[1642573815459,2.4142111,3108.4,3108.1,0.00170527]
[1642573815659,5.6142111,3108.4,3108.1,0.00170527]
[1642573816664,4.530069,3108.4,3108.1,1.87239209]
[1642573816862,3.725329,3108.4,3108.1,3.46945747]
[1642573817061,3.725329,3108.4,3108.2,1.81949128]
[1642573817263,2.05601988,3108.9,3108.3,7.44706538]
[1642573817462,2.05601988,3108.9,3108.4,1.59706538]
[1642573817663,0.00227369,3108.8,3108.7,1.43930306]
[1642573817862,0.00227369,3108.8,3108.3,1.59706538]